fUST/lending_fUST_20250910
["ID","MTS","AMOUNT","RATE_DAILY","PERIOD"]
[384697989,1757514644450,-160.0,0.0001723,2]
[384697990,1757514644460,-160.0,0.0001723,2]
[384697991,1757514644469,-217.67150996,0.0001723,2]
[384697992,1757514644478,-846.88337432,0.0001723,2]
[384697993,1757514644487,-233.08191698,0.0001723,2]
[384697994,1757514644497,-203.30414021,0.0001723,2]
[384697995,1757514644506,-417.15472785,0.00017233,2]
[384697996,1757514644516,-500.0,0.0001727,2]
[384697997,1757514644525,-151.0,0.0001727,2]
[384697998,1757514644535,-359.999796,0.0001727,2]
[384697999,1757514644545,-151.0,0.0001727,2]
[384698000,1757514644555,-359.999796,0.0001727,2]
[384698001,1757514644564,-214.747912,0.0001727,2]
[384698002,1757514644574,-359.999796,0.0001727,2]
[384698003,1757514644583,-359.999796,0.0001727,2]
[384698004,1757514644593,-151.0,0.00017321,2]
[384698005,1757514644602,-151.0,0.00017321,2]
[384698006,1757514644611,-480.0,0.00017353,2]
[384698007,1757514644620,-2500.0,0.00017364,2]
[384698008,1757514644630,-500.0,0.00017407,2]
[384698009,1757514644640,-480.0,0.00017407,2]
[384698010,1757514644650,-988.24,0.00017407,2]
[384698011,1757514644660,-398.8,0.00017429,2]
[384698012,1757514644669,-480.0,0.00017463,2]
[384698013,1757514644767,-230.472743,0.00017494,2]
[384698014,1757514644777,-600.0,0.00017496,2]
[384698015,1757514644787,-151.0,0.000175,2]
[384698016,1757514644797,-308.3146544,0.00017624,2]
[384698017,1757514644806,-480.0,0.00017627,2]
[384698018,1757514644816,-500.0,0.00017681,2]
[384698019,1757514644826,-480.0,0.00017681,2]
[384698020,1757514644835,-151.0,0.00017681,2]
[384698021,1757514644845,-151.0,0.00017681,2]
[384698022,1757514644854,-988.24,0.00017681,2]
[384698023,1757514644863,-480.0,0.00017737,2]
[384698024,1757514644873,-151.0,0.000178,2]
[384698025,1757514644882,-1332.71841088,0.000179,2]
[384698026,1757514644892,-201.93455994,0.00017901,2]
[384698027,1757514644902,-3000.0,0.00017912,2]
[384698028,1757514644912,-500.0,0.00017955,2]
[384698029,1757514644921,-480.0,0.00017955,2]
[384698030,1757514644931,-988.24,0.00017955,2]
[384698031,1757514644940,-500.0,0.00017973,2]
[384698032,1757514644950,-555.3552302,0.00017973,2]
[384698033,1757514644959,-500.0,0.00017973,2]
[384698034,1757514644969,-500.0,0.00017973,2]
[384698035,1757514644978,-500.0,0.00017973,2]
[384698036,1757514644988,-500.0,0.00017973,2]
[384698037,1757514644997,-500.0,0.00017973,2]
[384698038,1757514645007,-500.0,0.00017973,2]
[384698039,1757514645016,-500.0,0.00017973,2]
[384698040,1757514645025,-500.0,0.00017973,2]
[384698041,1757514645035,-500.0,0.00017973,2]
[384698042,1757514645044,-500.0,0.00017973,2]
[384698043,1757514645053,-500.0,0.00017973,2]
[384698044,1757514645062,-500.0,0.00017973,2]
[384698045,1757514645072,-500.0,0.00017973,2]
[384698046,1757514645084,-201.26884193,0.00017973,2]
[384698047,1757514645093,-500.7152998,0.00017973,2]
[384698048,1757514645102,-500.0,0.00017973,2]
[384698049,1757514645111,-500.0,0.00017973,2]
[384698050,1757514645122,-500.0,0.00017973,2]
[384698051,1757514645131,-500.0,0.00017973,2]
[384698052,1757514645140,-500.0,0.00017973,2]
[384698053,1757514645150,-500.0,0.00017973,2]
[384698054,1757514645161,-500.0,0.00017973,2]
[384698055,1757514645170,-500.0,0.00017973,2]
[384698056,1757514645180,-500.0,0.00017973,2]
[384698057,1757514645189,-500.0,0.00017973,2]
[384698058,1757514645198,-521.01237101,0.00017973,2]
[384698059,1757514645207,-500.0,0.00017973,2]
[384698060,1757514645216,-500.0,0.00017973,2]
[384698061,1757514645226,-500.0,0.00017973,2]
[384698062,1757514645235,-500.0,0.00017973,2]
[384698063,1757514645245,-500.0,0.00017973,2]
[384698064,1757514645254,-500.0,0.00017973,2]
[384698065,1757514645264,-500.0,0.00017973,2]
[384698066,1757514645273,-500.0,0.00017973,2]
[384698067,1757514645283,-500.0,0.00017973,2]
[384698068,1757514645293,-500.17026261,0.00017973,2]
[384698069,1757514645302,-500.0,0.00017973,2]
[384698070,1757514645311,-500.0,0.00017973,2]
[384698071,1757514645321,-500.0,0.00017973,2]
[384698072,1757514645331,-500.0,0.00017973,2]
[384698073,1757514645340,-500.0,0.00017973,2]
[384698074,1757514645350,-151.0,0.00017973,2]
[384698075,1757514645359,-151.0,0.00017973,2]
[384698076,1757514645369,-248.569316,0.00017973,2]
[384698077,1757514645378,-151.0,0.00017973,2]
[384698078,1757514645388,-151.0,0.00017973,2]
[384698079,1757514645397,-151.0,0.00017973,2]
[384698081,1757514645407,-290.1605511,0.00017973,2]
[384698082,1757514645416,-151.0,0.00017973,2]
[384698083,1757514645425,-151.0,0.00017973,2]
[384698084,1757514645434,-151.0,0.00017973,2]
[384698085,1757514645443,-638.856128,0.00017973,2]
[384698086,1757514645452,-151.0,0.00017973,2]
[384698087,1757514645461,-638.856128,0.00017973,2]
[384698088,1757514645471,-638.856128,0.00017973,2]
[384698090,1757514645480,-638.856128,0.00017973,2]
[384698092,1757514645489,-151.0,0.00017973,2]
[384698093,1757514645499,-151.0,0.00017973,2]
[384698094,1757514645508,-151.0,0.00017973,2]
[384698095,1757514645517,-151.0,0.00017973,2]
[384698096,1757514645526,-151.0,0.00017973,2]
[384698097,1757514645535,-151.0,0.00017973,2]
[384698098,1757514645544,-212.614112,0.00017973,2]
[384698099,1757514645557,-151.0,0.00017973,2]
[384698100,1757514645566,-151.0,0.00017973,2]
[384698101,1757514645575,-286.114694,0.00017973,2]
[384698102,1757514645584,-286.114694,0.00017973,2]
[384698103,1757514645594,-286.114694,0.00017973,2]
[384698104,1757514645603,-151.0,0.00017973,2]
[384698105,1757514645613,-286.114694,0.00017973,2]
[384698106,1757514645622,-151.0,0.00017973,2]
[384698107,1757514645632,-180.634112,0.00017973,2]
[384698108,1757514645641,-26982.92864248,0.00018,2]
[384698109,1757514645651,-9579.05286596,0.00018,2]
[384698110,1757514645660,-11960.0,0.00018,2]
[384698111,1757514645669,-18251.03384842,0.00018,2]
[384698112,1757514645756,-1125.88236939,0.00018,2]
[384698113,1757514645767,-10123.62626775,0.00018,2]
[384698114,1757514645777,-300.876436,0.00018,2]
[384698115,1757514645786,-151.0,0.00018,2]
[384698116,1757514645796,-151.0,0.00018,2]
[384698117,1757514645805,-151.0,0.00018,2]
[384698118,1757514645815,-151.0,0.00018,2]
[384698119,1757514645824,-359.999796,0.00018,2]
[384698120,1757514645833,-151.0,0.00018,2]
[384698121,1757514645842,-359.999796,0.00018,2]
[384698122,1757514645852,-359.999796,0.00018,2]
[384698123,1757514645862,-359.999796,0.00018,2]
[384698124,1757514645871,-151.0,0.00018,2]
[384698125,1757514645880,-151.0,0.00018,2]
[384698126,1757514645890,-151.0,0.00018,2]
[384698127,1757514645899,-151.0,0.00018,2]
[384698128,1757514645909,-151.0,0.00018,2]
[384698129,1757514645918,-190.758758,0.00018,2]
[384698130,1757514645927,-151.0,0.00018,2]
[384698131,1757514645937,-638.856128,0.00018,2]
[384698132,1757514645947,-151.0,0.00018,2]
[384698134,1757514645957,-638.856128,0.00018,2]
[384698136,1757514645967,-638.856128,0.00018,2]
[384698138,1757514645976,-638.856124,0.00018,2]
[384698140,1757514645986,-151.0,0.00018,2]
[384698142,1757514645995,-151.0,0.00018,2]
[384698144,1757514646004,-151.0,0.00018,2]
[384698146,1757514646013,-151.0,0.00018,2]
[384698147,1757514646022,-151.0,0.00018,2]
[384698148,1757514646032,-151.0,0.00018,2]
[384698149,1757514646041,-151.0,0.00018,2]
[384698150,1757514646051,-286.114694,0.00018,2]
[384698151,1757514646060,-286.114694,0.00018,2]
[384698152,1757514646070,-286.114694,0.00018,2]
[384698153,1757514646084,-286.114702,0.00018,2]
[384698154,1757514646094,-151.0,0.00018,2]
[384698155,1757514646102,-151.0,0.00018,2]
[384698156,1757514646111,-480.0,0.00018011,2]
[384698157,1757514646122,-500.0,0.00018229,2]
[384698158,1757514646132,-279.99,0.00018229,2]
[384698160,1757514646141,-988.24,0.00018229,2]
[384698162,1757514646152,-480.0,0.00018285,2]
[384698163,1757514646161,-998.00055177,0.00018348,2]
[384698164,1757514646171,-151.0,0.00018365,2]
[384698165,1757514646180,-359.999796,0.00018365,2]
[384698166,1757514646189,-151.0,0.00018365,2]
[384698167,1757514646198,-359.999796,0.00018365,2]
[384698168,1757514646207,-359.999796,0.00018365,2]
[384698169,1757514646217,-359.999796,0.00018365,2]
[384698170,1757514646225,-398.8,0.0001839,2]
[384698171,1757514646235,-151.0,0.000184,2]
[384698173,1757514646244,-3500.0,0.0001846,2]
[384698174,1757514646253,-823.0,0.00018478,2]
[384698175,1757514646262,-197.601283,0.00018493,2]
[384698176,1757514646272,-500.0,0.00018503,2]
[384698177,1757514646281,-988.24,0.00018503,2]
[384698178,1757514646290,-500.71844632,0.00018521,2]
[384698179,1757514646300,-1000.0,0.00018521,2]
[384698180,1757514646309,-1000.0,0.00018521,2]
[384698181,1757514646320,-1000.0,0.00018521,2]
[384698182,1757514646330,-1000.0,0.00018521,2]
[384698183,1757514646339,-1000.87580389,0.00018521,2]
[384698184,1757514646348,-1000.0,0.00018521,2]
[384698185,1757514646357,-1000.0,0.00018521,2]
[384698186,1757514646368,-1000.0,0.00018521,2]
[384698187,1757514646377,-1000.0,0.00018521,2]
[384698188,1757514646387,-1000.0,0.00018521,2]
[384698189,1757514646396,-1000.77414759,0.00018521,2]
[384698190,1757514646406,-1000.0,0.00018521,2]
[384698191,1757514646415,-1000.0,0.00018521,2]
[384698192,1757514646425,-500.65147977,0.00018521,2]
[384698193,1757514646436,-568.40233238,0.00018521,2]
[384698194,1757514646445,-1000.59437154,0.00018521,2]
[384698195,1757514646455,-1000.0,0.00018521,2]
[384698196,1757514646466,-1000.0,0.00018521,2]
[384698197,1757514646475,-1000.0,0.00018521,2]
[384698198,1757514646485,-1000.0,0.00018521,2]
[384698199,1757514646494,-1000.0,0.00018521,2]
[384698200,1757514646503,-1000.0,0.00018521,2]
[384698201,1757514646513,-1000.0,0.00018521,2]
[384698202,1757514646523,-1000.0,0.00018521,2]
[384698203,1757514646533,-1000.0,0.00018521,2]
[384698204,1757514646543,-1000.0,0.00018521,2]
[384698205,1757514646553,-1000.0,0.00018521,2]
[384698206,1757514646562,-1000.0,0.00018521,2]
[384698207,1757514646571,-1000.0,0.00018521,2]
[384698208,1757514646582,-180.91798768,0.00018521,2]
[384698209,1757514646595,-819.08201232,0.00018521,2]
[384698210,1757514646604,-1000.0,0.00018521,2]
[384698211,1757514646614,-1000.0,0.00018521,2]
[384698213,1757514646623,-1000.0,0.00018521,2]
[384698214,1757514646632,-1000.0,0.00018521,2]
[384698215,1757514646642,-480.0,0.00018559,2]
[384698216,1757514646652,-151.0,0.000186,2]
[384698217,1757514646661,-500.0,0.00018631,2]
[384698218,1757514646671,-861.0,0.00018707,2]
[384698219,1757514646681,-229.72815651,0.00018777,2]
[384698220,1757514646691,-988.24,0.00018777,2]
[384698221,1757514646701,-480.0,0.00018833,2]
[384698222,1757514646711,-4000.0,0.00019008,2]
[384698223,1757514646721,-988.24,0.00019051,2]
[384698224,1757514646731,-1500.0,0.00019068,2]
[384698225,1757514646740,-1500.0,0.00019068,2]
[384698226,1757514646749,-1500.0,0.00019068,2]
[384698227,1757514646758,-1000.0,0.00019068,2]
[384698228,1757514646768,-1500.0,0.00019068,2]
[384698229,1757514646777,-1000.0,0.00019068,2]
[384698230,1757514646787,-1500.0,0.00019068,2]
[384698231,1757514646796,-1000.0,0.00019068,2]
[384698232,1757514646806,-500.92025239,0.00019068,2]
[384698233,1757514646815,-1500.0,0.00019068,2]
[384698234,1757514646825,-1500.0,0.00019068,2]
[384698235,1757514646835,-1500.0,0.00019068,2]
[384698236,1757514646943,-500.78954074,0.00019068,2]
[384698237,1757514646957,-1500.0,0.00019068,2]
[384698238,1757514646968,-1500.0,0.00019068,2]
[384698239,1757514646979,-1500.0,0.00019068,2]
[384698240,1757514646989,-500.77391745,0.00019068,2]
[384698241,1757514646999,-1378.15729852,0.00019068,2]
[384698242,1757514647009,-1156.01919131,0.00019068,2]
[384698243,1757514647020,-1500.0,0.00019068,2]
[384698244,1757514647030,-500.66439281,0.00019068,2]
[384698245,1757514647040,-586.54967329,0.00019068,2]
[384698246,1757514647050,-1500.0,0.00019068,2]
[384698247,1757514647060,-1500.0,0.00019068,2]
[384698248,1757514647070,-500.72580369,0.00019068,2]
[384698249,1757514647084,-180.04868535,0.00019068,2]
[384698250,1757514647094,-230.35488053,0.00019068,2]
[384698251,1757514647104,-1500.0,0.00019068,2]
[384698252,1757514647115,-1203.1771519,0.00019068,2]
[384698253,1757514647126,-151.0,0.000191,2]
[384698254,1757514647136,-480.0,0.00019107,2]
[384698255,1757514647147,-3563.57803225,0.00019178,2]
[384698256,1757514647158,-151.0,0.000192,2]
[384698257,1757514647168,-988.24,0.00019325,2]
[384698258,1757514647178,-398.8,0.0001935,2]
[384698259,1757514647188,-480.0,0.00019381,2]
[384698260,1757514647198,-1480.4,0.00019556,2]
[384698261,1757514647208,-988.24,0.00019599,2]
[384698262,1757514647218,-500.0,0.00019612,2]
[384698263,1757514647227,-2000.0,0.00019616,2]
[384698264,1757514647237,-384.81466778,0.00019616,2]
[384698265,1757514647247,-804.64214251,0.00019616,2]
[384698266,1757514647256,-2000.0,0.00019616,2]
[384698267,1757514647266,-2000.0,0.00019616,2]
[384698268,1757514647276,-2000.0,0.00019616,2]
[384698269,1757514647286,-1143.24831229,0.00019616,2]
[384698270,1757514647295,-2000.0,0.00019616,2]
[384698271,1757514647305,-2000.0,0.00019616,2]
[384698272,1757514647314,-2000.0,0.00019616,2]
[384698273,1757514647325,-2000.0,0.00019616,2]
[384698274,1757514647334,-2000.0,0.00019616,2]
[384698275,1757514647344,-2000.0,0.00019616,2]
[384698276,1757514647353,-2000.0,0.00019616,2]
[384698277,1757514647364,-1077.75035114,0.00019616,2]
[384698278,1757514647373,-319.00000007,0.00019655,2]
[384698279,1757514647383,-151.0,0.000197,2]
[384698280,1757514647393,-182.860483,0.00019726,2]
[384698281,1757514647402,-151.0,0.000198,2]
[384698282,1757514647412,-58967.84502848,0.000198,3]
[384698283,1757514647422,-988.24,0.00019873,2]
[384698284,1757514647431,-13077.80176769,0.000199,2]
[384698285,1757514647441,-311.53033218,0.00019987,2]
[384698286,1757514647451,-1209.0,0.0002,7]
[384698287,1757514647461,-199.64732441,0.0002,2]
[384698288,1757514647470,-151.50000152,0.0002,2]
[384698289,1757514647480,-4000.0,0.0002,4]
[384698290,1757514647489,-409.0,0.00020059,2]
[384698291,1757514647499,-988.24,0.00020147,2]
[384698292,1757514647509,-2500.0,0.00020164,2]
[384698293,1757514647519,-500.0,0.00020164,2]
[384698294,1757514647528,-2500.0,0.00020164,2]
[384698295,1757514647539,-2500.0,0.00020164,2]
[384698296,1757514647548,-2500.0,0.00020164,2]
[384698297,1757514647562,-2453.06766678,0.00020164,2]
[384698298,1757514647571,-2500.0,0.00020164,2]
[384698299,1757514647581,-2500.0,0.00020164,2]
[384698300,1757514647591,-501.50978933,0.00020164,2]
[384698301,1757514647601,-2002.03774841,0.00020164,2]
[384698302,1757514647610,-2500.0,0.00020164,2]
[384698303,1757514647620,-324.164294,0.00020187,2]
[384698304,1757514647630,-199.64732441,0.000202,2]
[384698305,1757514647640,-1152.0,0.00020243,2]
[384698306,1757514647649,-800.0,0.00020285,2]
[384698307,1757514647659,-589.03261003,0.00020285,2]
[384698308,1757514647669,-800.0,0.00020294,2]
[384698309,1757514647678,-398.8,0.00020311,2]
[384698310,1757514647687,-13077.80176763,0.00020327,2]
[384698311,1757514647696,-800.0,0.00020396,2]
[384698312,1757514647706,-151.0,0.000204,4]
[384698313,1757514647715,-151.0,0.000204,3]
[384698314,1757514647725,-199.64732441,0.00020402,2]
[384698315,1757514647735,-998.00055177,0.00020407,2]
[384698316,1757514647744,-988.24,0.00020421,2]
[384698317,1757514647754,-454.45456363,0.00020481,4]
[384698318,1757514647764,-1304.0,0.00020584,2]
[384698319,1757514647773,-1304.0,0.00020584,2]
[384698320,1757514647783,-1304.0,0.00020584,2]
[384698321,1757514647792,-1304.0,0.00020584,2]
[384698322,1757514647802,-1304.0,0.00020584,2]
[384698323,1757514647812,-1304.0,0.00020584,2]
[384698324,1757514647821,-1304.0,0.00020584,2]
[384698325,1757514647831,-1434.83621197,0.00020584,2]
[384698326,1757514647840,-199.64732441,0.00020606,2]
[384698327,1757514647850,-500.0,0.00020644,2]
[384698328,1757514647860,-1500.0,0.00020644,14]
[384698329,1757514647869,-1500.0,0.00020644,14]
[384698330,1757514647879,-1500.0,0.00020644,14]
[384698331,1757514647889,-1500.0,0.00020644,14]
[384698332,1757514647899,-1500.0,0.00020644,14]
[384698333,1757514647909,-1500.0,0.00020644,14]
[384698334,1757514647919,-1500.0,0.00020644,14]
[384698335,1757514647928,-1500.0,0.00020644,14]
[384698336,1757514647938,-1500.0,0.00020644,14]
[384698337,1757514647947,-1500.0,0.00020644,14]
[384698338,1757514647957,-1500.0,0.00020644,14]
[384698339,1757514647967,-1500.0,0.00020644,14]
[384698340,1757514647977,-1500.0,0.00020644,14]
[384698341,1757514647987,-1500.0,0.00020644,14]
[384698342,1757514647996,-1500.0,0.00020644,14]
[384698343,1757514648005,-1500.0,0.00020644,14]
[384698344,1757514648017,-1500.0,0.00020644,14]
[384698345,1757514648027,-1026.442396,0.00020644,14]
[384698346,1757514648037,-454.45456363,0.00020686,4]
[384698347,1757514648047,-988.24,0.00020695,2]
[384698348,1757514648057,-3000.0,0.00020712,2]
[384698349,1757514648067,-3000.0,0.00020712,2]
[384698350,1757514648080,-503.48957192,0.00020712,2]
[384698351,1757514648089,-3000.0,0.00020712,2]
[384698352,1757514648099,-258.35532151,0.00020712,2]
[384698353,1757514648115,-2087.80459244,0.00020712,2]
[384698354,1757514648126,-3000.0,0.00020712,2]
[384698355,1757514648135,-1000.0,0.00020712,2]
[384698356,1757514648145,-416.07470665,0.00020715,2]
[384698357,1757514648156,-450.21276711,0.00020715,2]
[384698358,1757514648166,-13077.80176763,0.00020755,2]
[384698359,1757514648176,-151.0,0.000208,3]
[384698360,1757514648187,-199.64732441,0.00020812,2]
[384698361,1757514648197,-605.93941818,0.00020891,6]
[384698362,1757514648207,-988.24,0.00020969,2]
[384698363,1757514648216,-299.82976288,0.00020973,2]
[384698364,1757514648226,-160.62109146,0.00020973,2]
[384698365,1757514648236,-40038.4481281,0.00021,3]
[384698366,1757514648246,-10581.05038389,0.00021,3]
[384698367,1757514648256,-3000.0,0.00021,2]
[384698368,1757514648266,-160.0,0.00021,3]
[384698369,1757514648276,-160.0,0.00021,3]
[384698370,1757514648286,-203.30414021,0.00021,3]
[384698371,1757514648295,-47936.37138298,0.00021,5]
[384698372,1757514648305,-3000.0,0.0002101,2]
[384698373,1757514648315,-3000.0,0.0002102,2]
[384698374,1757514648324,-3000.0,0.0002103,2]
[384698375,1757514648334,-3000.0,0.0002104,2]
[384698376,1757514648344,-3000.0,0.0002105,2]
[384698377,1757514648353,-3000.0,0.0002106,2]
[384698378,1757514648363,-3000.0,0.0002107,2]
[384698379,1757514648373,-3000.0,0.0002108,2]
[384698380,1757514648383,-3000.0,0.0002109,2]
[384698381,1757514648393,-605.93941818,0.00021096,6]
[384698382,1757514648403,-3000.0,0.000211,2]
[384698383,1757514648412,-3000.0,0.0002111,2]
[384698384,1757514648423,-3000.0,0.0002112,2]
[384698385,1757514648433,-3000.0,0.0002113,2]
[384698386,1757514648443,-3000.0,0.0002114,2]
[384698387,1757514648453,-3000.0,0.0002115,2]
[384698388,1757514648463,-3000.0,0.0002116,2]
[384698389,1757514648473,-2.14319857,0.0002117,2]
[384698390,1757514648547,-645.48,0.00013915,2]
[384698391,1757514648557,-480.0,0.00014443,2]
[384698392,1757514648567,-2997.85680143,0.0002117,2]
[384698393,1757514648578,-3516.964397,0.0002118,2]
[384698394,1757514648588,-13077.80176763,0.00021182,2]
[384698395,1757514648597,-988.24,0.00021243,2]
[384698396,1757514648607,-3500.0,0.0002126,2]
[384698397,1757514648618,-3500.0,0.0002126,2]
[384698398,1757514648629,-363.80794701,0.0002126,2]
[384698399,1757514648639,-3500.0,0.0002126,2]
[384698400,1757514648649,-398.8,0.00021271,2]
[384698401,1757514648660,-151.0,0.000213,4]
[384698402,1757514648671,-605.93941818,0.000213,6]
[384698403,1757514648681,-151.0,0.000215,3]
[384698404,1757514648691,-14057.04757879,0.000215,2]
[384698405,1757514648702,-304.31673641,0.00021505,6]
[384698406,1757514648712,-988.32310299,0.00021516,2]
[384698407,1757514648722,-13077.80176763,0.0002161,2]
[384698408,1757514648731,-500.0,0.00021676,2]
[384698409,1757514648741,-182.860483,0.00021716,2]
[384698410,1757514648751,-467.17940026,0.00021808,2]
[384698411,1757514648760,-502.80755434,0.00021808,2]
[384698412,1757514648771,-4000.0,0.00021808,2]
[384698413,1757514648781,-197.601283,0.00021918,2]
[384698414,1757514648791,-150.0,0.00021918,2]
[384698415,1757514648800,-174.0,0.00021918,2]
[384698416,1757514648810,-174.0,0.00021918,2]
[384698417,1757514648819,-174.0,0.00021918,2]
[384698418,1757514648829,-174.0,0.00021918,2]
[384698419,1757514648839,-174.24106029,0.00021918,2]
[384698420,1757514648848,-6119.95099833,0.00022,7]
[384698421,1757514650568,-4461.09938556,0.00022,7]
[384698422,1757514650580,-3316.47275167,0.00022,7]
[384698423,1757514650594,-2696.03750889,0.00022,7]
[384698424,1757514650608,-1079.89973944,0.00022,7]
[384698425,1757514650619,-29538.96477119,0.00022,7]
[384698426,1757514650903,-434.92,0.00014056,2]
[384698427,1757514650935,-45.08,0.00014056,2]
[384698428,1757514650947,-480.0,0.0001433,2]
[384698429,1757514650959,-473.8157944,0.00014604,2]
[384698430,1757514651124,-6.1842056,0.00014604,2]
[384698431,1757514651134,-480.0,0.00014717,2]
[384698432,1757514651143,-480.0,0.00014878,2]
[384698433,1757514651154,-480.0,0.00015152,2]
[384698434,1757514651164,-270.55,0.00015153,3]
[384698435,1757514651173,-480.0,0.00015426,2]
[384698436,1757514651182,-103.57563432,0.000157,2]
[384698438,1757514699716,993.18333191,0.00013399,2]
[384698440,1757514704442,-168.7742141,0.00014354,2]
[384698443,1757514714122,-152.41223673,0.00013699,2]
[384698472,1757515028575,-152.0,0.00013467,2]
[384698473,1757515031964,831.94730784,0.00013332,2]
[384698474,1757515032030,16.05269216,0.00013332,2]
[384698475,1757515032312,-185.17404277,0.00013467,2]
[384698476,1757515040234,662.82595723,0.00013332,2]
[384698477,1757515056845,662.82595723,0.00013332,2]
[384698478,1757515057308,-154.75521047,0.00013467,2]
[384698479,1757515064701,508.07074676,0.00013332,2]
[384698480,1757515080311,508.07074676,0.00013332,2]
[384698481,1757515088373,508.07074676,0.00013332,2]
[384698482,1757515100946,-187.448763,0.00013467,2]
[384698483,1757515104275,508.07074676,0.00013332,2]
[384698484,1757515112817,320.62198376,0.00013332,2]
[384698485,1757515126729,-320.62198376,0.00013467,2]
[384698486,1757515126965,44.61683332,0.00013499,2]
[384698487,1757515127198,-344.64467641,0.00013499,2]
[384698488,1757515127453,-276.73849027,0.00013499,2]
[384698489,1757515128836,155.45994058,0.00013332,2]
[384698490,1757515128891,165.16204318,0.00013332,2]
[384698491,1757515196274,846.55,0.00012329,2]
[384698493,1757515206996,263.9,0.00012329,2]
[384698495,1757515237923,367.89372861,0.00012329,2]
[384698496,1757515237980,71.94627139,0.00012329,2]
[384698497,1757515248682,193.44,0.00012329,2]
[384698498,1757515269404,304.42,0.00012329,2]
[384698499,1757515280076,937.72,0.00012329,2]
[384698500,1757515290606,963.1,0.00012329,2]
[384698501,1757515301190,1074.89,0.00012329,2]
[384698502,1757515311663,895.74,0.00012329,2]
[384698503,1757515322743,588.53210801,0.00012329,2]
[384698504,1757515322817,157.91789199,0.00012329,2]
[384698505,1757515333221,790.21,0.00012329,2]
[384698509,1757515343672,738.79,0.00012329,2]
[384698510,1757515354732,615.65,0.00012329,2]
[384698511,1757515365390,558.24,0.00012329,2]
[384698512,1757515376190,512.35,0.00012329,2]
[384698513,1757515383208,3384.6877574,0.00013238,2]
[384698514,1757515386630,477.42,0.00012329,2]
[384698515,1757515397209,450.76,0.00012329,2]
[384698516,1757515407763,428.76,0.00012329,2]
[384698517,1757515418447,465.75,0.00012329,2]
[384698518,1757515428987,388.13,0.00012329,2]
[384698519,1757515439554,368.67,0.00012329,2]
[384698520,1757515450126,419.15,0.00012329,2]
[384698521,1757515460817,243.52435061,0.00012329,2]
[384698522,1757515460867,105.76564939,0.00012329,2]
[384698523,1757515471770,337.57,0.00012329,2]
[384698524,1757515482220,358.8,0.00012329,2]
[384698525,1757515492886,299.0,0.00012329,2]
[384698526,1757515503407,293.99,0.00012329,2]
[384698530,1757515510738,180.89454327,0.00013306,2]
[384698531,1757515513864,343.18,0.00012329,2]
[384698533,1757515523633,-180.89454327,0.0001344,2]
[384698534,1757515524303,285.98,0.00012329,2]
[384698536,1757515534818,285.4,0.00012329,2]
[384698538,1757515545442,309.75,0.00012329,2]
[384698539,1757515555970,258.12,0.00012329,2]
[384698542,1757515566840,242.34,0.00012329,2]
[384698556,1757515577311,338.17,0.00012329,2]
[384698568,1757515587752,233.49066903,0.00012329,2]
[384698569,1757515587812,48.31933097,0.00012329,2]
[384698573,1757515598227,234.84,0.00012329,2]
[384698574,1757515608653,195.7,0.00012329,2]